Cogmind - Beta 15 @@@ ROGUE MODE // 2025.07.01 @ 12:53:43 Player: winnking222 Result: Destroyed by G-34 Mercenary with Small Laser Performance ------------- Evolutions (0) 0 Regions Visited (4) 800 Robots Destroyed (29) 145 Value Destroyed (588) 588 Prototype IDs (3) 60 Alien Tech Used (0) 0 Bonus (0) 0 TOTAL SCORE: 1593 Bonus ------- None Cogmind --------- Core Integrity 0/250 Matter 265/300 Energy 250/250 System Corruption 1% Temperature Cool (10) Movement Walking (260) Ox2 Location -9/Mines Parts ------- > --- POWER (1) -------- Ion Engine > --- PROPULSION (2) --- Aluminum Leg Aluminum Leg > --- UTILITY (2) ------ Heat Sink High-capacity Storage Unit > --- WEAPON (2) ------- Particle Gun Assault Rifle > --- INVENTORY (20) --- Nuclear Core Light Nuclear Core Reinforced Deuterium Engine Aluminum Leg Aluminum Leg Aluminum Leg Aluminum Leg Heat Sink High-capacity Storage Unit High-capacity Matter Pod (200) Seismic Detector Seismic Detector ECM Suite Small Laser Particle Gun Particle Cannon Assault Rifle Light Assault Rifle Bore Cannon Rocket Launcher Peak State ------------ > --- POWER ------------ Ion Engine > --- PROPULSION ------- Aluminum Leg Aluminum Leg > --- UTILITY ---------- Heat Sink High-capacity Storage Unit > --- WEAPON ----------- Particle Gun Particle Gun > --- INVENTORY -------- Ion Engine Nuclear Core Light Nuclear Core Reinforced Deuterium Engine Aluminum Leg High-capacity Matter Pod Seismic Detector Seismic Detector ECM Suite Small Laser Assault Rifle Assault Rifle Light Assault Rifle [Rating: 11] Favorites ----------- Power Ion Engine Engine Ion Engine Propulsion Light Treads Treads Light Treads Leg Aluminum Leg Utility Heat Sink Device Heat Sink Storage Large Storage Unit Weapon Particle Gun Energy Gun Particle Gun Ballistic Gun Assault Rifle Build | -11 -10 -10 -10 -9 ------- Run | Yrd Mat Min Exi Min Slots Evolved . | . . . . . Power . | . . . . . Propulsion . | . . . . . Utility . | . . . . . Weapon . | . . . . . Parts Attached 18 | 7 1 4 1 5 Power 3 | 1 . 1 . 1 Engine 3 | 1 . 1 . 1 Core . | . . . . . Reactor . | . . . . . Propulsion 5 | 2 . . . 3 Treads 2 | 2 . . . . Leg 3 | . . . . 3 Wheel . | . . . . . Hover . | . . . . . Flight . | . . . . . Utility 5 | 2 1 1 1 . Device 2 | 1 . 1 . . Storage 3 | 1 1 . 1 . Processor . | . . . . . Hackware . | . . . . . Protection . | . . . . . Artifact . | . . . . . Weapon 5 | 2 . 2 . 1 Energy Gun 2 | . . 2 . . Energy Cannon . | . . . . . Ballistic Gun 3 | 2 . . . 1 Ballistic Cannon . | . . . . . Launcher . | . . . . . Special Weapon . | . . . . . Impact Weapon . | . . . . . Slashing Weapon . | . . . . . Piercing Weapon . | . . . . . Special Melee Weapon . | . . . . . Unidentified Prototypes . | . . . . . Parts Lost 4 | . . 2 . 2 Power 2 | . . 1 . 1 Propulsion 2 | . . 1 . 1 Utility . | . . . . . Weapon . | . . . . . Highest Loss Streak 2 | . . 2 . 2 To Critical Strikes . | . . . . . Average Backups 11 | 5 7 12 14 14 Power 2 | 1 1 2 3 3 Propulsion 2 | 2 2 2 3 1 Utility 3 | . 2 3 4 4 Weapon 3 | . 2 4 4 5 Tool/Special . | . . . . . Unused Backups 18 | . . 1 . 17 Power 3 | . . . . 3 Propulsion 4 | . . . . 4 Utility 5 | . . . . 5 Weapon 6 | . . 1 . 5 Tool/Special . | . . . . . Average Slot Usage (%) 93 | . 100 84 85 97 Engine 13 | . 14 12 14 12 Treads 15 | . 28 14 14 . Leg 7 | . . . . 27 Device 14 | . 14 14 14 14 Storage 14 | . 14 14 14 14 Energy Gun 13 | . . 22 28 14 Ballistic Gun 14 | . 28 5 . 13 Peak Build Rating 11 | 7 8 9 10 11 Average Rating 8 | 4 7 8 9 10 On Entrance 6 | . 7 8 9 10 Naked Turns . | . . . . . Heaviest Build 52 | 14 29 32 52 51 Greatest Support 40 | 40 40 20 20 20 Greatest Overweight (x) 4 | 4 . 1 2 2 Average Overweight (x) . | 1 . 1 1 2 Largest Inventory Capacity 20 | 8 15 15 20 20 Average Capacity 14 | 7 11 15 16 20 Most Carried 20 | 8 12 15 15 20 Average Carried 11 | 5 7 12 14 14 Final Capacity 20 | 8 15 15 20 20 Final Carried 20 | 5 12 13 15 20 Class Distribution -------------------- 95% | Mutant 4% | Scavenger-Mutant Dominant Class ---------------- Mutant | -10/Materials Mutant | -10/Mines Mutant | -10/Exiles Mutant | -9/Mines Resources | -11 -10 -10 -10 -9 ----------- Run | Yrd Mat Min Exi Min Matter Collected 913 | 326 197 88 150 152 Remotely . | . . . . . Salvage Created 973 | 164 422 88 . 299 Parts 65 | 11 35 4 . 15 Haulers Intercepted 1 | . 1 . . . Recyclers Shooed 2 | 1 1 . . . Parts Field Recycled . | . . . . . Retrieved Matter . | . . . . . Parts Self-Destructed . | . . . . . Prevented . | . . . . . Kills | -11 -10 -10 -10 -9 ------- Run | Yrd Mat Min Exi Min Combat Hostiles Destroyed 19 | . 10 2 . 7 Guns 19 | . 10 2 . 7 Classes Destroyed 8 | 2 5 . . 1 Builder 1 | . 1 . . . Tunneler 4 | 4 . . . . Hauler 1 | . 1 . . . Recycler 3 | 1 2 . . . Watcher 1 | . 1 . . . Swarmer 8 | . 8 . . . Grunt 10 | . 2 2 . 6 Duelist 1 | . . . . 1 Best Kill Streak 6 | 3 6 2 . 3 Combat Bots Only 4 | . 4 2 . 3 Max Kills in Single Turn 1 | 1 1 1 . 1 Gunslinging . | . . . . . Exploded . | . . . . . Melee . | . . . . . Uniques/NPCs Destroyed . | . . . . . Combat | -11 -10 -10 -10 -9 -------- Run | Yrd Mat Min Exi Min Hostile Shots Fired 145 | . 67 12 . 66 Missed 40 | . 19 5 . 16 Hits 105 | . 48 7 . 50 Melee 2 | . . . . 2 Projectile 103 | . 48 7 . 48 Critical Strikes 1 | . . . . 1 Damage Taken 1212 | . 478 92 . 642 Core 256 | . 43 14 . 199 Absorbed by Shields . | . . . . . Core Remaining (%) 100 | 100 . . . . Volleys Fired 99 | 14 48 6 . 31 Largest 2 | 2 2 2 . 2 Hottest 130 | 40 40 40 . 130 Shots Fired 196 | 28 96 12 . 60 Gun 196 | 28 96 12 . 60 Cannon . | . . . . . Launcher . | . . . . . Special . | . . . . . Kinetic 159 | 28 96 12 . 23 Thermal 37 | . . . . 37 Explosive . | . . . . . Electromagnetic . | . . . . . Robot Hit Streak 10 | 7 10 7 . 6 Robot Miss Streak 3 | 1 3 2 . 3 Penetration Max . | . . . . . Secondary Targets 6 | . 5 . . 1 Max Gunslinging Chain 1 | . 1 . . 1 Shots Hit Robots 130 | 21 64 9 . 36 Core Hits 54 | 8 25 6 . 15 Critical Kills . | . . . . . Critical Parts Destroyed . | . . . . . Critical Strikes . | . . . . . Melee Attacks . | . . . . . Impact . | . . . . . Slashing . | . . . . . Piercing . | . . . . . Sneak Attacks . | . . . . . Combat Hostiles . | . . . . . Follow-up Attacks . | . . . . . Damage Inflicted 1588 | 232 694 117 . 545 Guns 1588 | 232 694 117 . 545 Cannons . | . . . . . Explosions . | . . . . . Melee . | . . . . . Ramming . | . . . . . Kinetic 1242 | 232 694 117 . 199 Thermal 346 | . . . . 346 Explosive . | . . . . . Electromagnetic . | . . . . . Impact . | . . . . . Slashing . | . . . . . Piercing . | . . . . . Highest Corruption 1 | . 1 1 1 1 Average Corruption 1 | . 1 1 1 1 Corruption Purged . | . . . . . Corruption Blocked . | . . . . . Effects 16 | . 2 3 6 5 Message Errors 4 | . 1 1 1 1 Matter Fused 6 | . 1 1 2 2 Heat Flow Errors 4 | . . 1 2 1 Energy Discharges 1 | . . . 1 . Alerts 1 | . . . . 1 Overload Shots . | . . . . . Overflow Damage . | . . . . . Projectiles . | . . . . . Explosions . | . . . . . Melee . | . . . . . Knockbacks . | . . . . . Impact . | . . . . . Kinetic . | . . . . . Secondary . | . . . . . Self-Inflicted Damage . | . . . . . Shots . | . . . . . Rammed . | . . . . . Targets Rammed . | . . . . . Kicked . | . . . . . Crushed . | . . . . . Highest Temperature 375 | . 18 178 170 375 Average Temperature 86 | . 9 60 82 108 Received Heat Transfer 495 | . 123 51 . 321 Siege Activations . | . . . . . Martial Activations . | . . . . . Shielding Activations . | . . . . . Robots Disrupted . | . . . . . Combat Hostiles . | . . . . . Robots Corrupted . | . . . . . Combat Hostiles . | . . . . . Parts Fried . | . . . . . Impact Corruptions . | . . . . . Robots Melted . | . . . . . Combat Hostiles . | . . . . . Parts Melted 1 | . . . . 1 Heat Transferred 814 | . . . . 814 Parts Sabotaged . | . . . . . Parts Stolen . | . . . . . Parts Stripped . | . . . . . Power Chain Reactions . | . . . . . Alert | -11 -10 -10 -10 -9 ------- Run | Yrd Mat Min Exi Min Maximum Alert Level . | . . . . . Low Security (%) 100 | 100 100 100 . 100 Level 1 . | . . . . . Level 2 . | . . . . . Level 3 . | . . . . . Level 4 . | . . . . . Level 5 . | . . . . . High Security . | . . . . . Max Security . | . . . . . Peak Influence 144 | 10 144 50 . 62 Initial 6 | . . 6 . . Average 32 | 1 59 10 . 15 Influence Increases 533 | 25 288 50 . 170 Destroy 0b10 Robot/C 380 | . 200 40 . 140 Destroy 0b10 Robot/NC 50 | 25 25 . . . Destroy Leader 74 | . 34 10 . 30 Successful Hack 14 | . 14 . . . Lose Combat Pursuer 15 | . 15 . . . Influence Decreases 481 | 25 272 66 . 118 Entered New Map 10 | . . 10 . . Time Decay 455 | 25 272 50 . 108 Lost Part 16 | . . 6 . 10 Squads Dispatched . | . . . . . Investigation . | . . . . . Extermination . | . . . . . Reinforcement . | . . . . . Assault . | . . . . . Garrison . | . . . . . Intercept . | . . . . . Searches Triggered . | . . . . . Construction Impeded . | . . . . . Haulers Reinforced . | . . . . . Active Scanning Responses . | . . . . . Cargo Convoy Interrupts . | . . . . . Stealth | -11 -10 -10 -10 -9 --------- Run | Yrd Mat Min Exi Min Distress Signals 1 | . 1 . . . Communications Jammed . | . . . . . Distress Signals . | . . . . . Times Spotted 29 | . 19 2 . 8 Peak Tracking Total 5 | . 5 2 . 3 Tactical Retreats 1 | . 1 . . . Traps | -11 -10 -10 -10 -9 ------- Run | Yrd Mat Min Exi Min Traps Triggered 1 | . 1 . . . Indirectly . | . . . . . Trap Hack Attempts . | . . . . . Triggered . | . . . . . Disarmed . | . . . . . Reprogrammed . | . . . . . Reused . | . . . . . Traps Extracted . | . . . . . Installed . | . . . . . Triggered . | . . . . . Machines | -11 -10 -10 -10 -9 ---------- Run | Yrd Mat Min Exi Min Machines Disabled . | . . . . . Max in Single Turn . | . . . . . Machines Repaired . | . . . . . Machines Dismantled . | . . . . . Machines Sabotaged . | . . . . . Overloaded Fab Kills . | . . . . . Hacking | -11 -10 -10 -10 -9 --------- Run | Yrd Mat Min Exi Min Machines Accessed 5 | . 3 . 1 1 Terminals 4 | . 3 . . 1 Fabricators . | . . . . . Repair Stations . | . . . . . Recycling Units . | . . . . . Scanalyzers . | . . . . . Garrison Access . | . . . . . Total Hacks 9 | . 4 . 4 1 Successful 7 | . 2 . 4 1 Failed 2 | . 2 . . . Catastrophic . | . . . . . Database Lockouts . | . . . . . Manual . | . . . . . Terminals 5 | . 4 . . 1 Fabricators . | . . . . . Repair Stations . | . . . . . Recycling Units . | . . . . . Scanalyzers . | . . . . . Garrison Access . | . . . . . Terminal Hacks 7 | . 2 . 4 1 Record 4 | . . . 4 . Prototype ID Bank 1 | . 1 . . . Emergency Access Points 1 | . 1 . . . Alert Level 1 | . . . . 1 Fabricator Hacks . | . . . . . Repair Station Hacks . | . . . . . Recycling Unit Hacks . | . . . . . Scanalyzer . | . . . . . Garrison Access Hacks . | . . . . . Unauthorized Hacks . | . . . . . Terminals . | . . . . . Fabricators . | . . . . . Repair Stations . | . . . . . Recycling Units . | . . . . . Scanalyzers . | . . . . . Garrison Access . | . . . . . Data Cores Recovered . | . . . . . Used . | . . . . . Hacking Detections 1 | . 1 . . . Full Trace Events . | . . . . . Feedback Events . | . . . . . Feedback Blocked . | . . . . . Robot Schematics Acquired . | . . . . . Robots Built . | . . . . . Authchips . | . . . . . Time . | . . . . . Total Robot Build Rating . | . . . . . Part Schematics Acquired . | . . . . . Parts Built . | . . . . . Authchips . | . . . . . Time . | . . . . . Total Part Build Rating . | . . . . . Parts Repaired . | . . . . . Time . | . . . . . Parts Recycled . | . . . . . Recycled Matter . | . . . . . Retrieved Matter . | . . . . . Retrieved Components . | . . . . . Parts Scanalyzed . | . . . . . Part Schematics Acquired . | . . . . . Parts Damaged . | . . . . . Bothacking | -11 -10 -10 -10 -9 ------------ Run | Yrd Mat Min Exi Min Used RIF Installer . | . . . . . Robots Hacked . | . . . . . Non-combat . | . . . . . Combat . | . . . . . Robot Hacks Applied . | . . . . . Relay Couplers Released . | . . . . . Fabnet Peak Effective % . | . . . . . Robots Rewired . | . . . . . Allies Hacked . | . . . . . Hacks Repelled . | . . . . . Allies | -11 -10 -10 -10 -9 -------- Run | Yrd Mat Min Exi Min Total Allies . | . . . . . Largest Group . | . . . . . Highest-Rated Group . | . . . . . Highest-Rated Ally . | . . . . . Total Orders . | . . . . . Ally Attacks . | . . . . . Total Damage . | . . . . . Kills . | . . . . . Allies Corrupted . | . . . . . Allies Melted . | . . . . . Intel | -11 -10 -10 -10 -9 ------- Run | Yrd Mat Min Exi Min Active Infowar (turns) 851 | 57 750 44 . . Seismic 851 | 57 750 44 . . Robot Analysis Total . | . . . . . Derelict Logs Recovered 2 | . . 1 . 1 Drone Launches . | . . . . . Drone Recoveries . | . . . . . Exploration | -11 -10 -10 -10 -9 ------------- Run | Yrd Mat Min Exi Min Turns Passed 2251 | 198 750 239 491 573 Spaces Moved 904 | 79 371 89 186 179 Core 46 | 46 . . . . Treads 679 | 33 371 89 186 . Legs 179 | . . . . 179 Wheels . | . . . . . Hover . | . . . . . Flight . | . . . . . Fastest Speed 50 | 50 160 240 240 260 Average Speed 210 | 179 160 240 262 260 Slowest Speed 320 | 250 160 240 320 260 Overloaded Moves . | . . . . . Propulsion Burnouts . | . . . . . Robots Hopped . | . . . . . Potential Cave-ins . | . . . . . Cave-ins Triggered . | . . . . . Exploration Rate (%) 35 | 4 65 24 49 37 Regions Visited 4 Branch Regions 3 Pre-discovered Areas 1 | . . . 1 . Known Exits Taken . | . . . . . Unknown Exits Taken 4 | 1 1 1 1 . Scrap Searched 1 | . . . . 1 Spaces Dug . | . . . . . Terrain Destroyed . | . . . . . Melee . | . . . . . Projectile . | . . . . . AOE . | . . . . . Terrain Rammed . | . . . . . Walls Destroyed . | . . . . . Machines Disabled . | . . . . . Actions | -11 -10 -10 -10 -9 --------- Run | Yrd Mat Min Exi Min Total 1072 | 110 441 104 190 227 Wait 16 | . 13 . . 3 Move 900 | 78 370 88 185 179 Hop . | . . . . . Pick Up 33 | 11 8 4 2 8 Fast Attach 1 | 1 . . . . Attach 10 | 6 . 1 . 3 Detach . | . . . . . Swap 7 | . 1 3 1 2 Drop 5 | . 1 2 1 1 Fire 99 | 14 48 6 . 31 Melee . | . . . . . Ram . | . . . . . Kick . | . . . . . Crush . | . . . . . Escape Stasis . | . . . . . Rewire 1 | . . . 1 . Trap . | . . . . . Miscellaneous . | . . . . . Route ------- -11/Scrapyard -10/Materials (discovered 3 exits: [*Mat x2] / [*Min]) -10/Mines -10/Exiles -9/Mines History --------- Turn | Location | Event 19 | -11/Scrapyard | Discovered new exit (range 16) 199 | -11/Scrapyard | Entered Materials 314 | -10/Materials | Build established: Mutant 557 | -10/Materials | Discovered new exit (range 15) 740 | -10/Materials | Discovered new exit (range 14) 800 | -10/Materials | Discovered new exit (range 6) 949 | -10/Materials | Entered Mines 1087 | -10/Mines | Learned Materials stockpile data 1178 | -10/Mines | Deemed a non-threat by the Exiles lab entrance 1178 | -10/Mines | Discovered new exit (range 5) 1188 | -10/Mines | Entered Exiles 1255 | -10/Exiles | Met 8R-AWN 1294 | -10/Exiles | Met EX-HEX 1427 | -10/Exiles | Met EX-DEC 1436 | -10/Exiles | Learned location of Zion (-7) 1640 | -10/Exiles | Discovered new exit (range 14) 1679 | -10/Exiles | Entered Mines 1696 | -9/Mines | Core integrity fell below 50% 1710 | -9/Mines | Core integrity fell below 20% 1752 | -9/Mines | Learned location of 1 exit from Lower Caves 1767 | -9/Mines | A weapon hastily lodged in a ceiling crevice suddenly fell to the ground 2252 | -9/Mines | Destroyed by G-34 Mercenary with Small Laser Last Messages --------------- 02022_ Found Particle Cannon. 02022_ Found 70 Matter. 02023_ Acquired 23 matter. 02027_ Acquired Rocket Launcher. 02033_ Acquired Particle Cannon. 02040_ Acquired Hcp. Storage Unit. 02123_ G-47 Trooper destroyed. 02129_ G-34 Mercenary destroyed. 02132_ R-06 Scavenger collects Aluminum Leg. 02137_ R-06 Scavenger collects Lgt. Nuclear Core. 02141_ G-34 Mercenary destroyed. 02142_ Acquired 24 matter. 02146_ Acquired Aluminum Leg. 02152_ Acquired Heat Sink. 02156_ Acquired Aluminum Leg. 02174_ Dropped Aluminum Leg. 02244_ Melee Analysis Suite melted. 02244_ L-31 Rogue destroyed. 02244_ Switching to secondary target: G-34 Mercenary. 02248_ System corrupted: Matter fused (-7). Map ----- +----------------------------------------------------+ | ???????????????## %[ #????????? ????? | | ??????????????## #???????????????? | | ??????????????# ##???????????????? | | ??????????????# #????????????????? | | ??????????????# #????????????????? | | ??????????????## #????????????????? | | ???????????????### ##???????????????? | | ?????????????????## ##??????????????? | | ??????????????????# #??????????????? | | ??????????????????## #??????????????? | | ???????????????????## ##??????????????? | | ????????????????????## #???????????????? | | ?????????????????????# #???????????????? | | ?????????????????????# #???????????????? | | ?????????????????????# #???????????????? | | ????????????########## ##### #?????????? | | ???? ??????# % %= #?????????? | | ??? """ ### ######## #######?????????? | | ??? """ *#??????# #???????????????? | | ??# #####??????# #???????????????? | | ???###???????????????# #???????????????? | | ?????????????????????# #???????????????? | | ?????????????????????# #???????????????? | | ???#######???????????# #???????????????? | | ??# ########## #####???????????? | | ??# t t/g@ #???????????? | | ??# ############## #???????????? | | ??# """ ""?????????????????????????????? | | ????""" ???????????????????????????????? | | ?????"?????????????????????????????????? | | ???????????????????????????????????????? | | ???????????????????????????????????????? | | ???????????????????????????????????????? | | ???????????????????????????????????????? | | ???????????????????????????????????????? | | ???????????????????????????????????????? | | ???????????????????????????????????????? | | ???????????????????????????????????????? | | ???????????????????????????????????????? | | ???????????????????????????????????????? | | ???????????????????????????????????????? | | ???????????????????????????????????????? | | | | | | | | | | | | | | | | | +----------------------------------------------------+ Best States ------------- Heat Dissipation 35 Energy Generation 10 Energy Capacity 250 Matter Stores 300 Matter Capacity 300 Sight Range 16 Terrain Scan Density 10 Evasion (%) 50 Recoil Reduction 2 Item Schematics ----------------- None Robot Schematics ------------------ None Fabricated ------------ Nothing Repaired ---------- Nothing Alien Tech Used ----------------- None Achievements -------------- None Challenges ------------ None Game ------ Seed MyomerSpikedDiverter Manual? 0 Play Time 00:13:00 Cumulative 74.1 hours Start 2025.07.01 @ 12:40:12 End 2025.07.01 @ 12:53:43 Sessions 1 Manual Loads 0 Difficulty Rogue Special Mode None Game No. 136 Rogue 136 Adventurer 0 Explorer 0 Win Type - Total 1 Types 1/0/0/0/0/0/0/0/0/0 Lore% 56 Gallery% 45 Achievement% 41 Wizard Run 0 Options --------- Layout 0 ASCII 0 Keyboard 0 Movement Mouse Keybinds 0 Fullscreen 1 Font 16/SmallcapsGlow Map View 75x55 Zoom Use 0% Tactical HUD 1 Map Filters NONE Filters NONE Steam 1 RUN: 639bfdc2-f91c-42d8-8735-3aba04780114